bitfinex-derivatives/quotes_BNBF0:USTF0_20250329
["timestamp","ask_amount","ask_price","bid_price","bid_amount"]
[1743282249235,1.14350929,602.12,601.51,1.22704996]
[1743282249437,2.33250929,602.12,601.51,1.22704996]
[1743282249833,1.14350929,602.11,601.51,1.22704996]
[1743282250037,1.14350929,602.11,601.43,0.28914101]
[1743282250235,1.43891326,602.1,601.43,0.28914101]
[1743282250434,1.43891326,602.09,601.43,0.28914101]
[1743282250637,1.43891326,602.08,601.43,0.28914101]
[1743282250839,1.43891326,602.07,601.43,0.28914101]
[1743282251038,1.43891326,602.06,601.43,0.28914101]
[1743282251234,1.43891326,602.05,601.43,0.28914101]
[1743282251435,1.43891326,602.04,601.43,0.28914101]
[1743282251637,1.43891326,602.03,601.43,0.28914101]
[1743282251833,1.14350929,602.07,601.43,0.28914101]
[1743282252243,1.14350929,602.02,601.43,0.28914101]
[1743282252445,1.14350929,602.02,601.41,0.33255183]
[1743282252634,1.14350929,602.01,601.41,0.33255183]
[1743282253040,1.189,602.12,601.41,0.33255183]
[1743282253345,5.3310862,602.11,601.41,0.33255183]
[1743282253643,5.31904112,602.1,601.41,0.33255183]
[1743282253844,5.31904112,602.09,601.41,0.33255183]
[1743282254043,5.31904112,602.08,601.41,0.33255183]
[1743282254242,5.31904112,602.07,601.43,1.22704996]
[1743282254442,5.31904112,602.06,601.43,1.22704996]
[1743282254639,5.3177471,602.05,601.43,1.22704996]
[1743282254842,5.31772835,602.04,601.43,1.22704996]
[1743282255039,5.31772835,602.03,601.43,1.22704996]
[1743282255244,4.40297455,602.02,601.43,1.22704996]
[1743282255445,7.37467788,602.01,601.43,1.22704996]
[1743282255645,3.73844142,602.0,601.43,1.22704996]
[1743282255841,3.73844142,601.99,601.43,1.22704996]
[1743282256042,1.43786208,601.98,601.43,1.22704996]
[1743282256241,3.73769105,601.97,601.43,1.22704996]
[1743282256445,1.43786208,601.96,601.43,1.22704996]
[1743282256646,1.43786208,601.95,601.43,1.22704996]
[1743282256948,1.43786208,601.94,601.41,0.33255183]
[1743282257149,1.43786208,601.93,601.41,0.33255183]
[1743282257348,1.43786208,601.92,601.41,0.33255183]
[1743282257549,1.43786208,601.91,601.41,0.33255183]
[1743282257748,1.14296282,601.94,601.41,0.33255183]
[1743282258048,1.4370132,601.93,601.41,0.33255183]
[1743282258350,1.4370132,601.92,601.41,0.33255183]
[1743282258648,2.57997602,601.91,601.41,0.33255183]
[1743282258848,1.14296282,601.91,601.41,0.33255183]
[1743282259248,1.14296282,601.9,601.41,0.33255183]
[1743282260055,1.14296282,601.89,601.41,0.33255183]
[1743282260652,1.5785957,602.05,601.41,0.33255183]
[1743282260850,5.31428625,602.04,601.41,0.33255183]
[1743282261053,3.73569055,602.03,601.41,0.33255183]
[1743282261251,3.73569055,602.02,601.41,0.33255183]
[1743282261452,3.73569055,602.01,601.41,0.33255183]
[1743282261649,3.73569055,602.0,601.41,0.33255183]
[1743282261850,3.73569055,601.99,601.41,0.33255183]
[1743282262056,3.73569055,601.99,601.18,1.22704996]
[1743282262057,3.73569055,601.98,601.18,1.22704996]
[1743282262258,3.73569055,601.97,601.18,1.22704996]
[1743282262557,3.73638949,601.96,601.18,1.22704996]
[1743282262757,1.43680406,601.95,601.18,1.22704996]
[1743282262958,1.43680406,601.94,601.19,1.22704996]
[1743282263153,1.43680406,601.93,601.19,1.51630633]
[1743282263356,1.43680406,601.92,601.19,1.51630633]
[1743282263550,1.43680406,601.91,601.19,1.51630633]
[1743282263755,1.43680406,601.9,601.19,1.51630633]
[1743282264052,1.14192539,601.93,601.19,1.51630633]
[1743282264257,0.927,602.11,601.19,1.51630633]
[1743282264258,1.14192539,601.89,601.19,1.22704996]
[1743282264655,1.14192539,601.89,601.19,1.51630873]
[1743282264858,1.14192539,601.88,601.22,1.22704996]
[1743282265859,1.46271505,602.09,601.22,1.22704996]
[1743282266056,5.31485114,602.08,601.22,1.22704996]
[1743282266359,8.94873333,602.07,601.22,1.22704996]
[1743282266557,5.31485114,602.06,601.22,1.22704996]
[1743282266758,5.31482114,602.05,601.22,1.22704996]
[1743282266957,5.31482114,602.04,601.22,1.22704996]
[1743282267159,4.40064874,602.03,601.22,1.22704996]
[1743282267360,4.40064874,602.02,601.22,1.22704996]
[1743282267560,3.73610217,602.01,601.22,1.22704996]
[1743282267760,3.73610217,602.0,601.22,1.22704996]
[1743282267960,3.73610217,601.99,601.22,1.22704996]
[1743282268161,3.73610217,601.98,601.22,1.22704996]
[1743282268457,1.43696237,601.97,601.26,1.22704996]
[1743282268658,2.96934693,601.98,601.26,1.22704996]
[1743282268859,1.43716991,601.97,601.26,1.22704996]
[1743282269058,2.96934693,601.98,601.26,1.22704996]
[1743282269260,1.14205651,601.96,601.26,1.22704996]
[1743282269853,0.927,602.11,601.26,1.22704996]
[1743282269854,1.14205651,601.95,601.26,1.22704996]
[1743282270163,1.14205651,601.95,601.32,1.22704996]
[1743282270764,0.66451176,602.07,601.32,1.22704996]
[1743282270960,3.73812759,602.06,601.32,1.22704996]
[1743282271165,3.73812759,602.05,601.32,1.22704996]
[1743282271465,3.73812759,602.04,601.32,1.22704996]
[1743282271666,3.73812759,602.03,601.32,1.22704996]
[1743282271965,3.73812759,602.02,601.32,1.22704996]
[1743282272160,3.73812759,602.01,601.32,1.22704996]
[1743282272366,4.65276543,602.0,601.3,1.22704996]
[1743282272660,4.65276543,601.99,601.3,1.22704996]
[1743282272865,4.65276543,601.98,601.3,1.22704996]
[1743282273066,4.65276543,601.97,601.3,1.22704996]
[1743282273266,4.65276543,601.96,601.3,1.22704996]
[1743282273466,4.65276543,601.95,601.3,1.22704996]
[1743282273664,4.65276543,601.94,601.3,1.22704996]
[1743282273867,3.73812759,601.93,601.3,1.22704996]
[1743282274071,3.73812759,601.92,601.3,1.22704996]
[1743282274268,4.37512759,601.91,601.3,1.22704996]
[1743282274473,3.73812759,601.9,601.16,0.28925757]
[1743282274672,1.43774138,601.89,601.16,0.28925757]
[1743282274867,1.43774138,601.88,601.16,0.28925757]
[1743282275072,1.43774138,601.87,601.16,0.28925757]
[1743282275272,1.43774138,601.86,601.16,0.28925757]
[1743282275468,1.43774138,601.85,601.16,0.28925757]
[1743282275670,1.43774138,601.84,601.16,0.28925757]
[1743282275872,1.43774138,601.83,601.16,0.28925757]
[1743282276072,1.43774138,601.82,601.16,0.28925757]
[1743282276272,1.551,601.83,601.16,0.28925757]
[1743282276574,2.57969104,601.82,600.76,1.22704996]
[1743282276772,1.43705953,601.81,601.16,0.28933814]
[1743282276973,1.43705953,601.8,600.78,0.33290056]
[1743282277169,1.43705953,601.79,600.78,0.33290056]
[1743282277371,1.43705953,601.78,600.78,0.33290056]
[1743282277572,1.43705953,601.77,600.78,0.33290056]
[1743282277867,1.43765003,601.76,600.79,0.28934415]
[1743282278072,1.14263151,601.77,600.8,0.33288948]
[1743282278670,1.14263151,601.76,600.8,0.33288948]
[1743282279271,1.14263151,601.75,600.8,0.33288948]
[1743282280074,1.14263151,601.74,600.8,0.33288948]
[1743282280670,1.14263151,601.73,600.8,0.33288948]
[1743282281374,1.551,601.83,600.8,0.33288948]
[1743282281576,1.43678635,601.82,600.8,0.33288948]
[1743282281772,1.43678635,601.81,600.8,0.33288948]
[1743282281977,1.43678635,601.8,600.8,0.33288948]
[1743282282273,1.43678635,601.79,600.8,0.33288948]
[1743282282477,1.14200655,601.8,600.8,0.33288948]
[1743282282672,1.14200655,601.78,600.8,0.33288948]
[1743282283779,1.14200655,601.77,601.09,1.22704996]
[1743282284472,1.551,601.83,601.09,1.22704996]
[1743282286080,1.551,601.83,601.23,1.22704996]
[1743282287681,1.551,601.83,601.05,1.22704996]
[1743282288681,2.855,601.83,601.06,0.33274548]
[1743282289678,2.855,601.83,601.12,1.22704996]
[1743282289877,2.855,601.83,601.12,1.55976223]
[1743282290778,2.855,601.83,601.13,0.33270673]
[1743282291982,2.855,601.83,601.17,1.22704996]
[1743282292182,2.855,601.83,601.18,0.33267906]
[1743282297788,2.855,601.83,601.29,1.22704996]
[1743282297988,2.855,601.83,601.3,0.33261267]
[1743282299089,4.243,601.83,601.3,0.33261267]
[1743282299289,4.243,601.83,601.3,1.55966263]
[1743282300791,4.243,601.83,601.34,1.22704996]
[1743282301185,4.243,601.83,601.34,1.5596405]
[1743282301993,4.243,601.83,601.34,0.33259054]
[1743282301994,5.558,601.83,601.34,0.33259054]
[1743282311893,6.195,601.83,601.34,0.33259054]
[1743282314393,7.123,601.83,601.34,0.33259054]
[1743282321105,7.123,601.83,601.49,1.22704996]
[1743282323408,7.123,601.83,601.39,0.28915543]
[1743282323409,7.123,601.83,601.4,1.22704996]
[1743282323708,7.123,601.83,601.41,0.33255183]
[1743282324711,7.123,601.83,601.59,1.22704996]
[1743282326405,7.123,601.83,601.41,0.33255183]
[1743282336919,8.44,601.83,601.41,0.33255183]
[1743282344519,8.44,601.83,601.53,1.22704996]
[1743282346223,8.44,601.83,601.42,0.28917705]
[1743282348430,8.44,601.83,601.41,0.33255183]
[1743282348627,8.44,601.83,601.42,0.28919147]
[1743282351431,8.44,601.83,601.41,0.33255183]
[1743282351831,8.44,601.83,601.42,0.28919147]
[1743282354431,8.44,601.83,601.41,0.33255183]
[1743282364335,8.44,601.83,601.46,1.22704996]
[1743282366539,8.44,601.83,601.45,1.22704996]
[1743282368643,8.44,601.83,601.41,0.33255183]
[1743282381153,8.44,601.83,601.41,1.55960179]
[1743282382448,8.44,601.83,601.41,0.33255183]
[1743282388461,8.44,601.83,601.44,1.22704996]
[1743282390052,8.44,601.83,601.41,0.33255183]
[1743282390053,8.44,601.83,601.5,1.22704996]
[1743282391556,8.44,601.83,601.51,1.22704996]
[1743282392757,8.44,601.83,601.5,1.22704996]
[1743282394356,8.44,601.83,601.41,0.33255183]
[1743282396656,1.14413973,601.82,601.41,0.33255183]
[1743282397362,3.22007169,602.11,601.41,0.33255183]
[1743282397559,3.74394402,602.1,601.41,0.33255183]
[1743282397756,3.74394402,602.09,601.41,0.33255183]
[1743282397957,3.74394402,602.08,601.41,0.33255183]
[1743282398161,3.74394402,602.07,601.41,0.33255183]
[1743282398358,3.74394402,602.06,601.41,0.33255183]
[1743282398556,3.74394402,602.05,601.41,0.33255183]
[1743282398762,1.43996999,602.04,601.41,0.33255183]
[1743282398962,1.43996999,602.03,601.41,0.33255183]
[1743282399162,1.43996999,602.02,601.41,0.33255183]
[1743282399363,1.43996999,602.01,601.41,0.33255183]
[1743282399565,1.43996999,602.0,601.41,0.33255183]
[1743282399765,1.43996999,601.99,601.41,0.33255183]
[1743282399963,1.43996999,601.98,601.41,0.33255183]
[1743282400165,0.638,601.99,601.41,0.33255183]
[1743282400868,1.222,601.98,601.41,0.33255183]
[1743282401169,2.826,601.98,601.41,0.33255183]
[1743282402467,2.826,601.98,601.6,1.22704996]
[1743282403769,2.826,601.98,601.58,1.22704996]
[1743282404166,1.148,601.97,601.58,1.22704996]
[1743282406475,1.148,601.97,601.54,1.22704996]
[1743282408675,1.148,601.97,601.43,0.28913741]
[1743282408676,1.148,601.97,601.58,1.22704996]
[1743282410181,1.14457203,601.96,601.58,1.22704996]
[1743282410377,1.14457203,601.96,601.46,1.22704996]
[1743282411279,1.148,601.97,601.46,1.22704996]
[1743282411482,1.148,601.97,601.47,1.22704996]
[1743282412783,0.929,601.96,601.47,1.22704996]
[1743282413480,0.929,601.96,601.49,1.22704996]
[1743282415481,0.929,601.96,601.48,1.22704996]
[1743282417186,0.929,601.96,601.5,1.22704996]
[1743282419188,0.929,601.96,601.51,1.22704996]
[1743282419588,1.14500786,601.95,601.51,1.22704996]
[1743282419990,0.929,601.96,601.51,1.22704996]
[1743282421293,1.14503352,601.95,601.51,1.22704996]
[1743282421792,1.14503352,601.95,601.41,0.33255183]
[1743282422186,1.14503352,601.94,601.41,0.33255183]
[1743282422792,0.929,601.96,601.41,0.33255183]
[1743282423794,1.1452201,601.95,601.41,0.33255183]
[1743282424391,1.1452201,601.94,601.41,0.33255183]
[1743282425297,2.3412201,601.94,601.41,0.33255183]
[1743282425500,1.196,601.94,601.41,0.33255183]
[1743282429000,1.196,601.94,601.41,1.55960179]
[1743282431502,1.196,601.94,601.6,1.22704996]
[1743282431902,1.834,601.94,601.6,1.22704996]
[1743282432704,1.834,601.94,601.7,1.22704996]
[1743282434901,1.834,601.94,601.68,1.22704996]
[1743282436808,1.834,601.94,601.61,1.22704996]
[1743282438506,1.834,601.94,601.55,1.22704996]
[1743282442706,1.834,601.94,601.48,0.2891278]
[1743282444415,1.834,601.94,601.46,1.22704996]
[1743282445014,1.834,601.94,601.46,1.5162198]
[1743282445209,2.764,601.94,601.46,1.5162198]
[1743282446214,2.764,601.94,601.46,0.28916984]
[1743282447015,2.764,601.94,601.47,1.22704996]
[1743282448614,3.96,601.94,601.47,1.22704996]
[1743282448816,3.96,601.94,601.48,1.22704996]
[1743282451416,3.96,601.94,601.62,1.22704996]
[1743282454014,3.96,601.94,601.55,1.22704996]
[1743282456317,3.96,601.94,601.53,0.28909777]
[1743282456519,3.96,601.94,601.52,1.22704996]
[1743282456917,3.96,601.94,601.53,0.28910978]
[1743282459621,3.96,601.94,601.44,1.22704996]
[1743282459922,5.386,601.94,601.53,0.28911939]
[1743282460323,5.386,601.94,601.44,1.22704996]
[1743282460523,5.386,601.94,601.1,2.53022023]
[1743282460524,5.386,601.94,601.53,0.28911939]
[1743282460925,5.386,601.94,601.45,0.33252971]
[1743282461119,5.386,601.94,601.53,0.28911819]
[1743282461524,5.386,601.94,601.45,0.33252971]
[1743282461724,5.386,601.94,601.53,0.28911819]
[1743282462023,5.386,601.94,601.45,0.33252971]
[1743282462721,5.386,601.94,601.46,0.28912059]
[1743282462924,5.386,601.94,601.47,0.33251866]
[1743282465020,5.386,601.94,601.51,1.22704996]
[1743282466621,5.386,601.94,601.56,1.22704996]
[1743282470226,5.386,601.94,601.57,1.22704996]
[1743282471624,5.386,601.94,601.68,1.22704996]
[1743282474127,5.386,601.94,601.66,1.22704996]
[1743282475424,5.386,601.94,601.7,1.22704996]
[1743282477824,5.386,601.94,601.77,1.22704996]
[1743282478030,4.456,601.94,601.77,1.22704996]
[1743282478235,1.196,601.94,601.77,1.22704996]
[1743282479830,1.196,601.94,601.8,1.22704996]
[1743282481434,1.196,601.94,601.91,1.22704996]
[1743282485844,1.196,601.94,601.93,1.48846206]
[1743282487854,1.196,601.94,601.87,1.48846206]
[1743282490054,1.196,601.94,601.86,1.48846206]
[1743282492257,1.196,601.94,601.78,2.53022023]
[1743282492258,1.196,601.94,601.85,1.48846206]
[1743282499863,1.196,601.94,601.84,1.48846206]
[1743282501057,1.196,601.94,601.86,1.48846206]
[1743282501555,1.685,602.08,601.86,1.48846206]
[1743282503262,1.685,602.08,601.9,1.48846206]
[1743282506165,1.685,602.08,601.85,0.28897294]
[1743282508572,1.685,602.08,601.86,0.33230319]
[1743282513374,1.047,602.08,601.86,0.33230319]
[1743282519080,1.047,602.08,602.03,1.24104457]
[1743282521381,1.047,602.08,602.05,1.24104457]
[1743282523080,1.047,602.08,602.06,1.24104457]
[1743282525684,1.047,602.08,602.02,1.24104457]
[1743282526879,1.047,602.08,601.98,0.28893215]
[1743282528583,1.047,602.08,601.93,1.48846206]
[1743282528784,1.047,602.08,601.98,0.28894295]
[1743282530191,1.047,602.08,601.98,1.52725264]
[1743282530394,0.638,602.1,601.98,1.52725264]
[1743282531495,0.638,602.1,601.98,1.23830969]
[1743282532093,0.638,602.1,601.98,1.52724904]
[1743282534388,0.638,602.1,602.01,1.23830969]
[1743282536699,0.638,602.1,601.99,0.28895495]
[1743282537498,0.638,602.1,601.86,0.33230319]
[1743282537893,0.638,602.1,601.99,0.28897294]
[1743282538197,0.638,602.1,601.86,0.33230319]
[1743282538397,0.638,602.1,601.99,0.28897294]
[1743282538699,0.638,602.1,601.86,0.33230319]
[1743282539000,0.638,602.1,601.99,0.28897294]
[1743282539401,0.638,602.1,601.86,0.33230319]
[1743282539598,0.638,602.1,601.99,0.28897294]
[1743282539994,1.221,602.14,601.86,0.33230319]
[1743282540201,1.221,602.14,601.99,0.28897294]
[1743282540602,1.221,602.14,601.86,0.33230319]
[1743282540803,1.221,602.14,601.99,0.28896814]
[1743282541004,0.931,602.13,601.99,0.28896814]
[1743282541304,0.931,602.13,601.86,0.33230319]
[1743282541501,0.931,602.13,601.99,0.28896934]
[1743282541704,0.931,602.13,601.89,1.23830969]
[1743282542101,0.931,602.13,601.99,0.28896574]
[1743282542300,0.931,602.13,601.89,1.23830969]
[1743282542805,0.931,602.13,601.99,0.28896574]
[1743282543006,0.931,602.13,601.89,1.23830969]
[1743282543406,0.931,602.13,601.95,0.28897774]
[1743282545907,0.931,602.13,602.0,1.48846206]
[1743282548008,0.931,602.13,601.97,1.48846206]
[1743282549815,0.931,602.13,601.97,1.24200593]
[1743282552110,1.406,602.21,601.97,1.24200593]
[1743282552312,1.406,602.21,601.96,1.24200593]
[1743282554213,1.588,602.2,601.96,1.24200593]
[1743282554813,2.519,602.2,601.96,1.24200593]
[1743282555016,3.918,602.2,601.96,1.24200593]
[1743282555915,3.918,602.2,602.02,1.24200593]
[1743282560518,3.918,602.2,601.98,0.28892976]
[1743282560519,3.918,602.2,602.03,1.24200593]
[1743282562017,3.918,602.2,602.0,0.28892856]
[1743282562018,3.918,602.2,602.01,1.24200593]
[1743282564018,3.918,602.2,602.06,1.24200593]
[1743282566520,3.918,602.2,602.03,1.24200593]
[1743282568713,3.918,602.2,602.17,1.24200593]
[1743282570016,3.918,602.2,602.1,1.48846206]
[1743282571724,3.918,602.2,602.19,1.48846206]
[1743282576536,3.918,602.2,602.17,1.48846206]
[1743282577034,2.519,602.2,602.17,1.48846206]
[1743282578830,2.519,602.2,602.1,1.48846206]
[1743282580437,0.931,602.2,602.1,1.48846206]
[1743282580837,0.931,602.2,602.11,1.48846206]
[1743282583838,1.406,602.21,602.11,1.48846206]
[1743282585139,1.406,602.21,602.13,1.48846206]
[1743282586439,2.534,602.34,602.13,1.48846206]
[1743282588946,2.534,602.34,602.19,1.24344889]
[1743282590743,2.534,602.34,602.2,1.24344889]
[1743282594644,2.534,602.34,602.21,1.24344889]
[1743282596741,2.534,602.34,602.04,0.28889138]
[1743282597638,2.534,602.34,602.0,1.24344889]
[1743282597838,2.534,602.34,602.0,1.5756748]
[1743282598142,2.534,602.34,602.04,0.28887939]
[1743282601445,0.931,602.33,602.04,0.28887939]
[1743282603450,0.931,602.33,602.0,0.33222591]
[1743282603649,1.57,602.33,602.0,0.33222591]
[1743282603850,1.57,602.33,602.04,0.28888059]
[1743282604047,1.57,602.33,602.08,1.24344889]
[1743282606246,1.57,602.33,602.14,1.24344889]
[1743282607752,1.57,602.33,602.19,1.24344889]
[1743282610048,1.57,602.33,602.17,1.24344889]
[1743282611957,1.57,602.33,602.15,1.24344889]
[1743282614055,1.57,602.33,602.14,1.24344889]
[1743282616053,1.57,602.33,602.13,0.28883503]
[1743282618759,0.931,602.33,602.13,0.28883503]
[1743282621061,0.931,602.33,602.15,1.24344889]
[1743282623162,0.931,602.33,602.28,1.24344889]
[1743282624761,0.931,602.33,602.18,1.24344889]
[1743282624961,0.931,602.33,602.2,0.28881825]
[1743282625562,3.081,602.39,602.2,0.28881825]
[1743282626458,3.081,602.39,602.2,1.53226714]
[1743282627565,3.081,602.39,602.2,1.24344889]
[1743282627966,3.081,602.39,602.2,1.53226954]
[1743282628766,3.081,602.39,602.24,1.24344889]
[1743282630363,3.081,602.39,602.2,0.28882065]
[1743282630364,3.081,602.39,602.2,1.53226954]
[1743282630567,3.081,602.39,602.21,0.33211006]
[1743282632469,1.713,602.39,602.21,0.33211006]
[1743282636269,1.713,602.39,602.23,1.24344889]
[1743282638466,1.713,602.39,602.22,1.24344889]
[1743282641371,1.713,602.39,602.24,1.24344889]
[1743282642266,1.713,602.39,602.22,1.24344889]
[1743282643066,1.074,602.39,602.22,1.24344889]
[1743282644774,0.96,602.45,602.22,1.24344889]
[1743282646074,2.055,602.46,602.22,1.24344889]
[1743282646476,2.694,602.46,602.22,1.24344889]
[1743282647072,2.694,602.46,602.21,0.62091153]
[1743282647073,2.694,602.46,602.3,1.24344889]
[1743282648279,2.694,602.46,602.21,0.62091153]
[1743282648280,2.694,602.46,602.31,1.24344889]
[1743282649974,2.694,602.46,602.39,1.24344889]
[1743282651677,2.694,602.46,602.32,1.24344889]
[1743282653576,2.694,602.46,602.28,0.28878709]
[1743282654675,2.694,602.46,602.22,1.24344889]
[1743282654878,2.694,602.46,602.28,0.28880747]
[1743282657785,2.694,602.46,602.23,1.24344889]
[1743282657977,2.694,602.46,602.28,0.28880627]
[1743282658888,2.694,602.46,602.29,1.24344889]
[1743282660388,2.694,602.46,602.41,1.24344889]
[1743282662389,2.694,602.46,602.44,1.24344889]
[1743282664182,1.677,602.46,602.44,1.24344889]
[1743282665291,1.677,602.46,602.43,1.24344889]
[1743282665491,1.038,602.46,602.43,1.24344889]
[1743282670091,1.038,602.46,602.23,1.24344889]
[1743282671492,1.038,602.46,602.22,0.28880387]
[1743282672593,1.038,602.46,602.21,0.33211006]
[1743282672896,1.038,602.46,602.22,0.28883503]
[1743282674495,2.345,602.46,602.22,0.28883503]
[1743282675690,2.345,602.46,602.21,0.33211006]
[1743282676096,2.345,602.46,602.22,0.28881346]
[1743282678697,2.345,602.46,602.21,0.33211006]
[1743282678900,2.345,602.46,602.22,0.28881346]
[1743282680507,2.345,602.46,602.29,1.24344889]
[1743282682514,2.345,602.46,602.3,1.24344889]
[1743282682712,1.307,602.46,602.3,1.24344889]
[1743282686815,1.307,602.46,602.27,0.28880267]
[1743282687614,1.307,602.46,602.21,0.33211006]
[1743282688015,1.307,602.46,602.27,0.28881346]
[1743282690522,1.307,602.46,602.22,1.24344889]
[1743282690816,1.307,602.46,602.27,0.28881226]
[1743282693519,1.307,602.46,602.21,0.33211006]
[1743282693923,1.307,602.46,602.27,0.28880147]
[1743282694624,2.375,602.53,602.27,0.28880147]
[1743282696525,2.375,602.53,602.21,0.33211006]
[1743282697025,2.375,602.53,602.27,0.28879309]
[1743282697718,1.439,602.52,602.27,0.28879309]
[1743282699523,1.725,602.51,602.27,0.28879309]
[1743282699823,1.725,602.51,602.21,0.33211006]
[1743282700026,1.725,602.51,602.27,0.28879428]
[1743282701830,2.364,602.51,602.27,0.28879428]
[1743282702028,3.612,602.51,602.27,0.28879428]
[1743282702228,3.612,602.51,602.39,1.24344889]
[1743282705830,3.612,602.51,602.35,1.24344889]
[1743282707628,3.612,602.51,602.36,1.24344889]
[1743282708428,3.612,602.51,602.37,0.33202184]
[1743282711128,3.612,602.51,602.42,1.24344889]
[1743282713535,3.612,602.51,602.41,1.24344889]
[1743282714633,3.612,602.51,602.37,1.57547073]
[1743282714930,3.612,602.51,602.39,0.28873318]
[1743282717738,3.612,602.51,602.37,0.33202184]
[1743282717939,3.612,602.51,602.39,0.28873797]
[1743282720635,3.612,602.51,602.37,0.33202184]
[1743282721042,3.612,602.51,602.39,0.28873797]
[1743282723144,3.612,602.51,602.4,0.33200531]
[1743282723843,2.973,602.51,602.4,0.33200531]
[1743282724545,1.248,602.51,602.4,0.33200531]
[1743282726948,1.248,602.51,602.44,1.24344889]
[1743282727341,1.248,602.51,602.45,0.33197775]
[1743282735246,1.248,602.51,602.47,1.24344889]
[1743282735648,1.248,602.51,602.48,0.33196122]
[1743282737051,1.248,602.51,602.48,1.57541011]
[1743282739253,1.248,602.51,602.5,1.24344889]
[1743282740254,1.248,602.51,602.5,1.57539909]
[1743282741252,1.248,602.51,602.5,0.3319502]
[1743282750064,1.555,602.68,602.5,0.3319502]
[1743282752160,1.555,602.68,602.61,1.48706769]
[1743282753863,1.555,602.68,602.63,2.53022023]
[1743282754565,3.853,602.74,602.63,2.53022023]
[1743282755563,3.853,602.74,602.64,1.4877131]
[1743282757060,2.786,602.74,602.64,1.4877131]
[1743282757460,2.786,602.74,602.65,1.4877131]
[1743282757967,1.571,602.74,602.65,1.4877131]
[1743282759371,1.571,602.74,602.6,1.4877131]
[1743282759972,1.571,602.74,602.61,0.33188961]
[1743282763673,0.639,602.74,602.61,0.33188961]
[1743282768179,0.639,602.74,602.71,1.23831301]
[1743282768379,0.639,602.74,602.72,0.33182904]
[1743282770482,1.399,602.84,602.72,0.33182904]
[1743282771878,1.399,602.84,602.75,1.23831301]
[1743282773884,1.399,602.84,602.83,1.23831301]
[1743282775979,1.399,602.84,602.73,1.4877131]
[1743282779589,1.399,602.84,602.72,0.62040061]
[1743282779590,1.399,602.84,602.72,2.10811371]
[1743282780790,1.399,602.84,602.72,1.81954214]
[1743282780985,1.399,602.84,602.72,2.10814363]
[1743282781491,1.399,602.84,602.72,0.62043053]
[1743282783192,1.188,602.85,602.72,0.62043053]
[1743282783583,1.188,602.85,602.72,0.33182904]
[1743282784189,1.188,602.85,602.72,0.62045805]
[1743282786493,1.188,602.85,602.72,0.33182904]
[1743282786893,1.188,602.85,602.72,0.62041377]
[1743282789590,1.188,602.85,602.72,0.33182904]
[1743282789995,1.188,602.85,602.72,0.62041736]
[1743282790597,1.253,602.95,602.72,0.62041736]
[1743282792695,1.253,602.95,602.72,0.33182904]
[1743282792996,1.253,602.95,602.72,0.620403]
[1743282793797,2.217,602.95,602.72,0.620403]
[1743282795700,2.217,602.95,602.72,0.33182904]
[1743282795999,2.217,602.95,602.72,0.620403]
[1743282801601,2.217,602.95,602.72,0.33182904]
[1743282802002,2.217,602.95,602.72,0.620403]
[1743282802904,2.217,602.95,602.77,1.23690288]
[1743282805002,2.217,602.95,602.74,1.23690288]
[1743282805603,1.253,602.95,602.74,1.23690288]
[1743282807511,1.253,602.95,602.84,1.23690288]
[1743282809611,1.253,602.95,602.75,1.52546249]
[1743282810609,1.253,602.95,602.75,1.23690288]
[1743282811210,1.253,602.95,602.75,1.52547325]
[1743282811410,1.253,602.95,602.75,0.28857037]
[1743282811811,0.639,602.98,602.75,0.28857037]
[1743282812013,1.572,602.98,602.75,0.28857037]
[1743282813716,1.572,602.98,602.72,0.33182904]
[1743282814018,1.572,602.98,602.75,1.23690288]
[1743282815115,1.572,602.98,602.79,1.23690288]
[1743282816911,1.572,602.98,602.78,1.23690288]
[1743282818413,0.933,602.98,602.77,1.23690288]
[1743282820115,0.933,602.98,602.81,1.23690288]
[1743282821419,0.933,602.98,602.83,1.23690288]
[1743282826129,1.28,603.02,602.83,1.23690288]
[1743282827629,1.28,603.02,602.8,0.2885309]